fUSD/lending_fUSD_20240503
["ID","MTS","AMOUNT","RATE_DAILY","PERIOD"]
[325331307,1714735847049,-1011.66,0.00033925,2]
[325331308,1714735847059,-342.49,0.00034,2]
[325331309,1714735847068,-850.0,0.00034,3]
[325331310,1714735847078,-209.0,0.0003434,2]
[325331311,1714735847087,-155.87072567,0.0003437,7]
[325331312,1714735847096,-522.59,0.00034698,2]
[325331313,1714735847106,-283.0,0.00034698,2]
[325331314,1714735847116,-350.82,0.00034698,2]
[325331315,1714735847124,-522.59,0.00034698,2]
[325331316,1714735847134,-350.82,0.00034698,2]
[325331317,1714735847143,-522.59,0.00034698,2]
[325331318,1714735847153,-350.82,0.00034698,2]
[325331319,1714735847167,-350.82,0.00034698,2]
[325331320,1714735847176,-206.07,0.00034698,2]
[325331321,1714735847185,-657.82,0.00034698,2]
[325331322,1714735847194,-394.27,0.00034737,120]
[325331323,1714735847204,-2861.52,0.000348,2]
[325331325,1714735847213,-2861.52,0.000348,2]
[325331327,1714735847222,-2861.52,0.000348,2]
[325331329,1714735847232,-26326.18487517,0.000349,2]
[325331331,1714735847242,-414.96895238,0.000349,30]
[325331333,1714735847252,-700.0,0.000349,12]
[325331334,1714735847261,-1011.66,0.000349,2]
[325331335,1714735847271,-246.57722587,0.00035,4]
[325331336,1714735847280,-155.0,0.00035,15]
[325331337,1714735847289,-20266.6225097,0.00035,6]
[325331338,1714735847299,-20266.87028602,0.00035,6]
[325331339,1714735847308,-15231.68876524,0.00035,6]
[325331340,1714735847320,-4752.33374793,0.00035,6]
[325331341,1714735847425,-282.88204268,0.00035,6]
[325331342,1714735847434,-24.56650537,0.00035,6]
[325331353,1714736928386,1181.53,0.000131,2]
[325331354,1714736986802,179.83112748,0.000131,2]
[325331355,1714736997018,298.96206293,0.000131,2]
[325331356,1714737004773,179.83112748,0.000131,2]
[325331357,1714737011197,298.96206293,0.000131,2]
[325331358,1714737022767,179.83112748,0.000131,2]
[325331378,1714737031599,-155.0,0.000209,2]
[325331379,1714737031610,-156.55,0.00021644,2]
[325331380,1714737031620,-174.11,0.00021644,2]
[325331381,1714737031630,-499.0,0.000246,3]
[325331382,1714737031643,-5000.0,0.00025,2]
[325331383,1714737031653,-150.0,0.00026247,2]
[325331384,1714737031663,-152.44,0.00026268,2]
[325331385,1714737031673,-250.0,0.00026268,2]
[325331386,1714737031683,-488.75336275,0.00027976,2]
[325331387,1714737031693,-150.99,0.00027976,2]
[325331388,1714737031704,-499.99,0.00029352,2]
[325331389,1714737031714,-155.0,0.00029352,2]
[325331390,1714737031724,-685.0,0.00029352,30]
[325331391,1714737031735,-151.51173512,0.00029352,2]
[325331392,1714737031747,-7136.4941,0.00029798,2]
[325331393,1714737031756,-156.55,0.00029883,2]
[325331394,1714737031767,-3033.40908722,0.00029898,2]
[325331395,1714737031779,-359.16532702,0.00029898,2]
[325331396,1714737031791,-259.81449999,0.00029898,2]
[325331397,1714737031802,-803.60000004,0.00029898,2]
[325331398,1714737031814,-6400.0,0.00029898,2]
[325331419,1714737032838,-911.68,0.00029898,2]
[325331420,1714737032855,-756.03810701,0.00029898,2]
[325331421,1714737032867,-415.09721781,0.00029898,2]
[325331422,1714737032887,-94158.89426091,0.00029898,2]
[325331423,1714737032897,-1777.71460994,0.000299,2]
[325331424,1714737032906,-155.0,0.0003,4]
[325331425,1714737032915,-2222.99999901,0.0003,3]
[325331426,1714737032925,-3000.0,0.0003,5]
[325331427,1714737032934,-180.0,0.00030258,2]
[325331428,1714737032944,-150.28,0.00030535,2]
[325331429,1714737032954,-1000.0,0.00030554,2]
[325331430,1714737032963,-163.69417388,0.00030606,7]
[325331431,1714737032973,-277.87,0.00030682,120]
[325331432,1714737032984,-427.32,0.00030815,2]
[325331433,1714737032993,-348.92,0.00030815,2]
[325331434,1714737033002,-250.0,0.0003083,2]
[325331435,1714737033011,-200.01,0.00030841,120]
[325331436,1714737033021,-23900.0,0.00030898,2]
[325331437,1714737033030,-157.29719814,0.000309,2]
[325331438,1714737033041,-492.26920761,0.00031,5]
[325331439,1714737033050,-3000.0,0.00031,6]
[325331440,1714737033061,-163.69417388,0.00031205,7]
[325331441,1714737033071,-1000.0,0.000317,2]
[325331442,1714737033081,-542.2271,0.00031701,2]
[325331443,1714737033091,-332.6433445,0.00032,4]
[325331444,1714737033100,-3000.1,0.00032,7]
[325331445,1714737033110,-153.72003342,0.00032279,7]
[325331446,1714737033119,-1777.71460992,0.0003235,2]
[325331447,1714737033128,-194.36,0.00032386,2]
[325331448,1714737033138,-279.0,0.00032795,8]
[325331449,1714737033148,-1000.0,0.000328,7]
[325331450,1714737033159,-3000.0,0.00033,8]
[325331451,1714737033168,-153.70167688,0.00033163,7]
[325331452,1714737033178,-155.0,0.0003325,60]
[325331453,1714737033188,-288.0,0.00033508,2]
[325331454,1714737033198,-2585.3713613,0.00034,9]
[325331455,1714737033211,-414.6286387,0.00034,9]
[325331456,1714737033220,-94.04891204,0.00034373,2]
[325331457,1714737033242,-295.44814184,0.00034373,2]
[325331458,1714737033278,-610.50294612,0.00034373,2]
[325331459,1714737033287,-150.28,0.0003441,2]
[325331460,1714737033297,-277.87,0.00034517,120]
[325331461,1714737033306,-150.0,0.00034548,10]
[325331462,1714737033315,-1173.46765146,0.0003465,2]
[325331463,1714737033325,-1777.71460992,0.000348,2]
[325331464,1714737033334,-26326.18487517,0.000349,2]
[325331465,1714737033344,-66684.0,0.000349,4]
[325331466,1714737033353,-2782.8352,0.000349,2]
[325331467,1714737033362,-600.0,0.000349,12]
[325331468,1714737033373,-20243.05310536,0.00035,6]
[325331469,1714737033382,-155.0,0.00035,15]
[325331470,1714737033391,-155.0,0.00035,2]
[325331471,1714737033401,-1606.02195512,0.00035,5]
[325331472,1714737033410,-155.0,0.00035,2]
[325331473,1714737033420,-500.0,0.00035,2]
[325331474,1714737033431,-500.0,0.00035,2]
[325331475,1714737033442,-500.0,0.00035,2]
[325331476,1714737033451,-500.0,0.00035,2]
[325331477,1714737033460,-3000.0,0.00035,10]
[325331478,1714737033469,-500.0,0.00035,2]
[325331479,1714737033479,-500.0,0.00035,2]
[325331480,1714737033488,-735.4131853,0.00035,30]
[325331481,1714737033498,-6588.72,0.00035,7]
[325331482,1714737033507,-1012.8,0.00035,2]
[325331483,1714737033516,-1000.0,0.00035,7]
[325331484,1714737033526,-16609.9211738,0.00035004,2]
[325331485,1714737033535,-1664.1606954,0.00035076,2]
[325331486,1714737033545,-283.71,0.000351,7]
[325331487,1714737033555,-157.29719814,0.00035178,2]
[325331488,1714737033566,-2954.0,0.000352,2]
[325331489,1714737033576,-500.0,0.00035218,10]
[325331490,1714737033587,-282749.48168202,0.00035256,3]
[325331491,1714737033596,-708.01196002,0.000353,2]
[325331492,1714737033607,-7500.0,0.000353,2]
[325331493,1714737033617,-349.58,0.0003539,10]
[325331494,1714737033626,-175.49996273,0.000354,8]
[325331495,1714737033636,-151.87422436,0.000354,2]
[325331496,1714737033647,-1000.0,0.000354,120]
[325331497,1714737033655,-1630.0,0.000355,5]
[325331498,1714737033665,-329926.09579138,0.000355,2]
[325331499,1714737033906,298.96206293,0.000131,2]
[325331500,1714737036107,547.35752792,0.000131,2]
[325331526,1714737037549,-37240.92673159,0.000355,2]
[325331528,1714737037564,-3920.84642048,0.000355,2]
[325331534,1714737037608,-6264.65999999,0.000355,2]
[325331536,1714737037620,-3479.31520056,0.000355,2]
[325331542,1714737037666,-3086.40000003,0.000355,2]
[325331547,1714737037723,-957.72743844,0.000355,2]
[325331548,1714737037782,-63446.52087953,0.000355,2]
[325331556,1714737039694,-947.72125674,0.000355,2]
[325331557,1714737039741,-53496.06895209,0.000355,2]
[325331558,1714737039773,-1473.0,0.000355,5]
[325331559,1714737039783,-170698.88322214,0.000355,2]
[325331560,1714737040578,-389.91918515,0.000355,2]
[325331561,1714737040667,-804.97781834,0.000355,2]
[325331562,1714737040678,-59162.83958149,0.000355,2]
[325331563,1714737040690,-5607.00724258,0.000355,2]
[325331564,1714737040702,-5930.37802851,0.000355,2]
[325331565,1714737040714,-642.97969301,0.000355,2]
[325331566,1714737040726,-401.91663883,0.000355,2]
[325331567,1714737040737,-697.04333686,0.000355,2]
[325331568,1714737040749,-447.46500001,0.000355,2]
[325331569,1714737040818,-840.25339436,0.000355,2]
[325331570,1714737040830,-2902.90000322,0.000355,2]
[325331571,1714737040854,-32511.12927574,0.000355,2]
[325331573,1714737040865,-656.14,0.000355,2]
[325331588,1714737044124,-49553.0277727,0.000355,2]
[325331589,1714737044169,-691367.36797329,0.000355,2]
[325331590,1714737044178,-150.96,0.000355,2]
[325331591,1714737044187,-55666.07608561,0.00035507,4]
[325331592,1714737044198,-278.16548255,0.00035507,4]
[325331593,1714737044240,160.99290696,0.000131,2]
[325331594,1714737044299,-413.94739391,0.00035507,4]
[325331595,1714737044311,-1995.34,0.00035507,4]
[325331596,1714737044322,-287.14684292,0.00035507,4]
[325331597,1714737044334,-20868.48,0.00035507,4]
[325331598,1714737044361,-5240.08156891,0.00035507,4]
[325331599,1714737044373,-500.0,0.00035507,4]
[325331600,1714737044384,-6488.08632,0.00035507,4]
[325331601,1714737044415,-404.75808895,0.00035507,4]
[325331602,1714737044428,-622.04026574,0.00035507,4]
[325331603,1714737044439,-287.944,0.00035507,4]
[325331613,1714737045615,-155.0,0.0002,2]
[325331614,1714737045625,-155.0,0.00020982,2]
[325331615,1714737045635,-307.53854056,0.00034658,2]
[325331616,1714737045644,-451.97039561,0.00035507,4]
[325331617,1714737045657,-466.98336431,0.00035507,4]
[325331618,1714737045677,-516.2379924,0.00035507,4]
[325331619,1714737045689,-454.68489641,0.00035507,4]
[325331620,1714737045701,-12947.05730268,0.00035507,4]
[325331621,1714737045712,-189.73207955,0.000356,2]
[325331622,1714737045723,-209.0,0.000357,2]
[325331623,1714737045732,-500.0,0.00035766,10]
[325331624,1714737045743,-1200.0,0.000358,13]
[325331625,1714737045753,-152.0,0.00035848,3]
[325331626,1714737045763,-1800.0,0.000359,13]
[325331627,1714737045773,-708.01195996,0.00035914,2]
[325331628,1714737045784,-3000.0,0.00036,11]
[325331629,1714737045794,-500.0,0.00036314,10]
[325331630,1714737045804,-1012.8,0.0003635,2]
[325331631,1714737045814,-150.96,0.000364,7]
[325331632,1714737045824,-288.0,0.00036508,2]
[325331633,1714737045836,-708.01195996,0.00036529,2]
[325331634,1714737045848,-500.0,0.0003662,2]
[325331635,1714737045859,-500.0,0.00036862,10]
[325331636,1714737045870,-150.0,0.00036932,2]
[325331637,1714737045881,-325.88,0.00036932,2]
[325331638,1714737045891,-350.82,0.00036932,2]
[325331639,1714737045902,-419.58,0.00036932,2]
[325331640,1714737045912,-522.59,0.00036932,2]
[325331641,1714737045922,-150.0,0.00036932,2]
[325331642,1714737045934,-350.82,0.00036932,2]
[325331643,1714737045944,-419.58,0.00036932,2]
[325331644,1714737045955,-350.82,0.00036932,2]
[325331645,1714737045966,-522.59,0.00036932,2]
[325331646,1714737045977,-522.59,0.00036932,2]
[325331647,1714737045988,-419.58,0.00036932,2]
[325331648,1714737046000,-350.82,0.00036932,2]
[325331649,1714737046011,-522.59,0.00036932,2]
[325331650,1714737046021,-522.59,0.00036932,2]
[325331651,1714737046032,-522.59,0.00036932,2]
[325331652,1714737046041,-300.0,0.00036934,2]
[325331653,1714737046051,-419.48,0.00036934,2]
[325331654,1714737046060,-3000.0,0.00037,12]
[325331655,1714737046070,-3337.0,0.00037,60]
[325331656,1714737046080,-202.0,0.0003706,2]
[325331657,1714737046091,-209.0,0.0003706,2]
[325331658,1714737046101,-500.0,0.00037136,10]
[325331659,1714737046111,-708.01195996,0.00037143,2]
[325331660,1714737046120,-2000.0,0.000374,19]
[325331661,1714737046129,-243.93019072,0.000375,3]
[325331662,1714737046138,-11998.64492343,0.000375,3]
[325331663,1714737046147,-150.96,0.000375,7]
[325331664,1714737046156,-150.97,0.000376,7]
[325331665,1714737046165,-1012.8,0.000377,2]
[325331666,1714737046174,-708.01195996,0.00037757,2]
[325331667,1714737046183,-500.0,0.00037958,10]
[325331668,1714737046192,-3000.0,0.00038,13]
[325331669,1714737046202,-156.55,0.00038121,2]
[325331671,1714737046211,-876.38736334,0.00038148,14]
[325331673,1714737046220,-1000.0,0.00038192,2]
[325331675,1714737046229,-394.27,0.0003821,120]
[325331677,1714737046239,-500.0,0.00038232,10]
[325331679,1714737046248,-676.05,0.00038247,2]
[325331681,1714737046257,-828.72,0.00038247,2]
[325331682,1714737046266,-828.72,0.00038247,2]
[325331683,1714737046275,-150.28,0.00038284,2]
[325331684,1714737046284,-405.81,0.000383,30]
[325331685,1714737046293,-277.87,0.00038353,120]
[325331686,1714737046302,-350.82,0.00038356,2]
[325331687,1714737046311,-163.01,0.00038356,2]
[325331688,1714737046320,-419.58,0.00038356,2]
[325331689,1714737046330,-300.0,0.00038356,2]
[325331690,1714737046339,-150.0,0.00038356,2]
[325331691,1714737046348,-163.01,0.00038356,2]
[325331692,1714737046358,-163.01,0.00038356,2]
[325331693,1714737046370,-150.0,0.00038356,2]
[325331694,1714737046380,-163.01,0.00038356,2]
[325331695,1714737046390,-708.01195996,0.00038371,2]
[325331696,1714737046399,-2000.0,0.000384,22]
[325331697,1714737046408,-465.0,0.000384,2]
[325331698,1714737046417,-202.0,0.0003842,2]
[325331699,1714737046426,-209.0,0.0003842,2]
[325331700,1714737046436,-1030.69146026,0.00038612,5]
[325331701,1714737046446,-304.0,0.00038727,120]
[325331702,1714737046455,-500.0,0.0003878,10]
[325331703,1714737046464,-500.0,0.0003878,10]
[325331704,1714737046473,-2400.0,0.000388,14]
[325331705,1714737046483,-4088.79484012,0.000389,15]
[325331706,1714737046491,-881.87566879,0.000389,30]
[325331707,1714737046501,-3000.0,0.000389,14]
[325331708,1714737046511,-1000.0,0.00038904,120]
[325331709,1714737046520,-1500.0,0.0003898,2]
[325331710,1714737046530,-708.01195996,0.00038986,2]
[325331711,1714737046539,-3000.0,0.00039,14]
[325331712,1714737046548,-1012.8,0.0003905,2]
[325331713,1714737046557,-500.0,0.00039054,10]
[325331714,1714737046572,-501.46,0.00039068,2]
[325331715,1714737046583,-325.81,0.00039068,2]
[325331716,1714737046592,-1000.0,0.00039084,20]
[325331717,1714737046601,-500.0,0.00039084,20]
[325331718,1714737046612,-1000.0,0.00039084,20]
[325331719,1714737046622,-1000.0,0.00039085,20]
[325331720,1714737046632,-1000.0,0.00039085,20]
[325331721,1714737046650,-500.0,0.00039085,20]
[325331722,1714737046664,-500.0,0.00039085,20]
[325331723,1714737046674,-2000.0,0.00039142,90]
[325331724,1714737046684,-2000.0,0.00039142,90]
[325331725,1714737046696,-500.0,0.00039203,2]
[325331726,1714737046706,-500.0,0.00039203,2]
[325331727,1714737046715,-500.0,0.00039203,2]
[325331728,1714737046725,-500.0,0.00039203,2]
[325331729,1714737046736,-506.5648,0.00039203,2]
[325331730,1714737046746,-181.05032,0.00039298,38]
[325331731,1714737046756,-192.21723298,0.00039299,2]
[325331732,1714737046767,-347.954734,0.000393,2]
[325331733,1714737046776,-194.36,0.00039326,2]
[325331734,1714737046787,-500.0,0.00039328,10]
[325331735,1714737046796,-500.0,0.00039328,10]
[325331736,1714737046806,-500.0,0.00039328,10]
[325331737,1714737046815,-339.0,0.0003936,46]
[325331738,1714737046825,-4871.2829131,0.00039394,2]
[325331739,1714737046835,-49588.1380937,0.00039394,2]
[325331740,1714737046845,-24067.6107976,0.00039394,2]
[325331741,1714737046855,-150.01,0.00039399,2]
[325331742,1714737046864,-5853.8102457,0.00039399,2]
[325331743,1714737046877,-184640.84418769,0.000394,7]
[325331744,1714737046888,-162323.36703497,0.000394,2]
[325331745,1714737046913,-440.74979347,0.000394,2]
[325331746,1714737046925,-585.79333653,0.000394,2]
[325331747,1714737046937,-417.92107087,0.000394,2]
[325331748,1714737046962,-2303.75270085,0.000394,2]
[325331749,1714737046973,-16747.61242291,0.000394,2]
[325331750,1714737046986,-2017.62724224,0.000394,2]
[325331751,1714737047008,-818.81267314,0.000394,2]
[325331752,1714737047020,-506.99460822,0.000394,2]
[325331753,1714737047032,-1471.2205633,0.000394,2]
[325331754,1714737047150,-466.70474391,0.000394,2]
[325331755,1714737047163,-4247.25,0.000394,2]
[325331756,1714737047192,-573.43013765,0.000394,2]
[325331757,1714737047206,-3269.17502,0.000394,2]
[325331758,1714737052125,298.96206293,0.000131,2]
[325331759,1714737070470,591418.77793096,0.00013,2]
[325331760,1714737070498,489244.0,0.00013,2]
[325331762,1714737121548,-200.0,0.000124,4]
[325331764,1714737121593,-500.0,0.000125,4]
[325331765,1714737121638,-459.50941499,0.000126,4]
[325331768,1714737122003,-240.49058501,0.000126,4]
[325331769,1714737122034,-894.02470577,0.000127,4]
[325331774,1714737645752,-166.41,0.00010589,2]
[325331775,1714737713786,-177.77,0.00010452,2]
[325331776,1714737725074,-282.17184262,0.00010589,2]
[325331777,1714738041043,-16.79022031,0.00010589,2]
[325331778,1714738041065,-216.5634798,0.00010698,2]
[325331779,1714738065379,-155.0,0.00010798,2]
[325331780,1714738065402,-28085.11171921,0.00010798,2]
[325331781,1714738087089,-322.09837172,0.00010589,2]
[325331804,1714738231897,-27836.70230425,0.00010798,2]
[325331805,1714738231990,-935.11650011,0.00010798,2]
[325331806,1714738232004,-317.625,0.00010798,2]
[325331807,1714738232050,-2605.49343482,0.00010798,2]
[325331808,1714738232062,-1768.6160208,0.00010798,2]
[325331893,1714738237976,-9797.85808281,0.00010798,2]
[325331920,1714738238094,-2470.43890567,0.00010798,2]
[325331924,1714738238106,-715.5495421,0.00010798,2]
[325331927,1714738238118,-383.65,0.00010798,2]
[325331930,1714738238130,-261.9,0.00010798,2]
[325331932,1714738238142,-849.33,0.00010798,2]
[325331933,1714738238153,-325.82,0.00010798,2]
[325331934,1714738238167,-395754.64465114,0.00010798,2]
[325331935,1714738238177,-155.0,0.00010798,2]
[325331936,1714738238186,-2217.73701039,0.00010798,2]
[325331937,1714738238196,-3769.34668531,0.00010798,2]
[325331938,1714738238205,-155.0,0.00010798,2]
[325331939,1714738238215,-155.0,0.00010798,2]
[325331940,1714738238225,-200.50882501,0.00010798,2]
[325331941,1714738238234,-1294.66870837,0.00010798,2]
[325331942,1714738238243,-192.95073016,0.00010798,2]
[325331943,1714738238253,-2362.42530527,0.00010798,2]
[325331944,1714738238263,-167.53697836,0.00010798,2]
[325331945,1714738238273,-684.85937217,0.00010798,2]
[325331946,1714738238283,-954.20107769,0.00010798,2]
[325331947,1714738238292,-1340.43061439,0.00010798,2]
[325331948,1714738238302,-2181.87993644,0.00010798,2]
[325331949,1714738238312,-25769.06503712,0.00010798,2]
[325331950,1714738238322,-5551.89418728,0.00010798,2]
[325331951,1714738238331,-155.0,0.00010798,2]
[325331952,1714738238341,-301.74364809,0.00010798,2]
[325331953,1714738238351,-182.48,0.0001096,2]
[325331954,1714738238361,-182.48,0.0001096,2]
[325331955,1714738238371,-2900.0,0.000123,4]
[325331956,1714738238381,-5800.0,0.000124,4]
[325331957,1714738238390,-966.77,0.00012436,2]
[325331958,1714738238400,-8700.0,0.000125,4]
[325331959,1714738238410,-23900.0,0.00012513,2]
[325331960,1714738238420,-11600.0,0.000126,4]
[325331961,1714738238430,-250.0,0.00012663,2]
[325331962,1714738238439,-14600.0,0.000127,4]
[325331963,1714738238448,-200.01,0.00012723,2]
[325331964,1714738238458,-1699.05,0.00012723,2]
[325331965,1714738238468,-2900.0,0.000128,4]
[325331966,1714738238477,-151.39999167,0.000129,2]
[325331967,1714738238486,-176.7536553,0.000129,2]
[325331968,1714738238496,-20249.3942,0.000129,2]
[325331969,1714738238505,-5088.5566,0.000129,2]
[325331970,1714738238515,-1000.0,0.000129,2]
[325331971,1714738238524,-176.97149165,0.000129,2]
[325331972,1714738238534,-176.2069143,0.000129,2]
[325331973,1714738238543,-1492.13575092,0.000129,2]
[325331974,1714738238554,-2900.0,0.000129,4]
[325331975,1714738238563,-189.73207955,0.000129,2]
[325331976,1714738238573,-702.62338552,0.000129,2]
[325331977,1714738238582,-181.86784178,0.000129,2]
[325331978,1714738238592,-326.75180842,0.000129,2]
[325331979,1714738238601,-176.97149162,0.00012933,2]
[325331980,1714738238610,-176.97149162,0.00012967,2]
[325331981,1714738238620,-172.49965028,0.0001299,2]
[325331982,1714738238629,-182.48,0.0001299,2]
[325331983,1714738238638,-182.48,0.0001299,2]
[325331984,1714738238647,-182.48,0.0001299,2]
[325331985,1714738238656,-182.48,0.0001299,2]
[325331986,1714738238666,-182.48,0.0001299,2]
[325331987,1714738238675,-182.48,0.0001299,2]
[325331988,1714738238684,-182.48,0.0001299,2]
[325331989,1714738238694,-182.48,0.0001299,2]
[325331990,1714738238703,-6761544.17261237,0.00013,2]
[325331991,1714738238713,-1394.03767857,0.00013,2]
[325331992,1714738238722,-399.55332141,0.00013,2]
[325331993,1714738238731,-4731908.40093821,0.00013,2]
[325331994,1714738238741,-176.97149162,0.00013,2]
[325331995,1714738238750,-499.99,0.00013,2]
[325331996,1714738238760,-154.13,0.00013017,2]
[325331997,1714738238769,-185.13604332,0.000131,2]
[325331998,1714738238778,-154.13,0.00013101,2]
[325331999,1714738238788,-154.13,0.00013186,2]
[325332000,1714738238797,-154.13,0.00013271,2]
[325332001,1714738238808,-154.13,0.00013356,2]
[325332002,1714738238820,-152.44,0.00013425,2]
[325332003,1714738238830,-154.13,0.00013441,2]
[325332004,1714738238840,-154.13,0.00013525,2]
[325332005,1714738238849,-154.13,0.0001361,2]
[325332006,1714738238858,-154.13,0.00013695,2]
[325332007,1714738238868,-171.55,0.00013775,2]
[325332008,1714738238877,-164.96,0.00015228,2]
[325332009,1714738238887,-176.20691427,0.00015309,2]
[325332010,1714738238897,-1000.0,0.00015497,2]
[325332011,1714738238908,-7485.0,0.00015533,2]
[325332012,1714738238917,-9189.71076016,0.00016997,7]
[325332013,1714738238928,-409.47154605,0.00016997,2]
[325332014,1714738238939,-22788.98881143,0.00016999,2]
[325332015,1714738238949,-1000.0,0.00017434,2]
[325332016,1714738238959,-176.20691427,0.00017718,2]
[325332017,1714738238968,-164.96,0.00017766,2]
[325332018,1714738238979,-2080.64328198,0.0001788,2]
[325332019,1714738238988,-2080.64328195,0.0001788,2]
[325332020,1714738238997,-2080.64328195,0.0001788,2]
[325332021,1714738239007,-2080.64328195,0.0001788,2]
[325332022,1714738239018,-3270.81534658,0.0001788,2]
[325332023,1714738239027,-3270.81534655,0.0001788,2]
[325332024,1714738239036,-3270.81534655,0.0001788,2]
[325332025,1714738239046,-3270.81534655,0.0001788,2]
[325332026,1714738239055,-450.0,0.00018,3]
[325332027,1714738239065,-1000.0,0.00019372,2]
[325332028,1714738239074,-536.56,0.000194,2]
[325332029,1714738239085,-165.34,0.000194,2]
[325332030,1714738239094,-682.17,0.000194,2]
[325332031,1714738239103,-2080.64328195,0.00019667,2]
[325332032,1714738239113,-3270.81534655,0.00019667,2]
[325332033,1714738239122,-10007.89605839,0.000199,2]
[325332034,1714738239131,-151.87422436,0.000199,2]
[325332035,1714738239140,-151.87422436,0.000199,2]
[325332036,1714738239150,-293.29822192,0.0002,2]
[325332037,1714738239159,-500.0,0.0002,3]
[325332038,1714738239168,-155.0,0.00020026,2]
[325332039,1714738239178,-176.20691427,0.00020127,2]
[325332040,1714738239188,-152.45,0.00020183,2]
[325332041,1714738239197,-248.85,0.00020233,2]
[325332042,1714738239206,-164.96,0.00020304,2]
[325332043,1714738239215,-155.0,0.000209,2]
[325332044,1714738239224,-1752.71243282,0.00020982,2]
[325332045,1714738239233,-1155.14723567,0.00021,2]
[325332046,1714738239242,-1000.0,0.00021309,2]
[325332047,1714738239251,-151.87422436,0.00021471,2]
[325332048,1714738239260,-177.9,0.00021644,2]
[325332049,1714738239269,-1000.0,0.000219,2]
[325332050,1714738239279,-2080.64328195,0.0002191,2]
[325332051,1714738239288,-3270.81534655,0.0002191,2]
[325332052,1714738239297,-2000.0,0.00021918,2]
[325332053,1714738239307,-2140.57,0.00021918,2]
[325332054,1714738239316,-155.49931898,0.00021918,2]
[325332055,1714738239326,-150.0,0.00021918,2]
[325332056,1714738239336,-550.0,0.00022,3]
[325332057,1714738239345,-155.15237881,0.00022381,2]
[325332058,1714738239354,-176.20691427,0.00022536,2]
[325332059,1714738239363,-248.85,0.00022762,2]
[325332060,1714738239372,-164.96,0.00022842,2]
[325332061,1714738239381,-180.46,0.00023016,2]
[325332062,1714738239391,-180.46,0.00023131,2]
[325332063,1714738239400,-1000.0,0.00023246,2]
[325332064,1714738239410,-155.78417517,0.00024,2]
[325332065,1714738239419,-682.17,0.00024,2]
[325332066,1714738239429,-600.0,0.00024,3]
[325332067,1714738239439,-2080.64328195,0.00024152,2]
[325332068,1714738239448,-3270.81534655,0.00024152,2]
[325332069,1714738239458,-180.24,0.00024329,15]
[325332070,1714738239468,-22418.11,0.00024658,2]
[325332071,1714738239477,-1000.0,0.000247,2]
[325332072,1714738239487,-2673.0,0.000248,3]
[325332073,1714738239496,-176.20691427,0.00024945,2]
[325332074,1714738239505,-151.39999165,0.00024968,2]
[325332075,1714738239515,-7726.23,0.0002498,2]
[325332076,1714738239524,-5000.0,0.00025,2]
[325332077,1714738239533,-165.34,0.00025,2]
[325332078,1714738239542,-3448.120291,0.00025,2]
[325332079,1714738239553,-800.0,0.00025151,2]
[325332080,1714738239563,-155.46650369,0.00025178,5]
[325332081,1714738239572,-155.0,0.00025178,2]
[325332082,1714738239581,-716.31163924,0.00025178,2]
[325332083,1714738239591,-301.29984529,0.00025178,2]
[325332084,1714738239601,-248.85,0.00025291,120]
[325332085,1714738239611,-151.87422436,0.00025757,2]
[325332086,1714738239621,-650.0,0.00026,3]